[Event "Early-Titled-Tuesday-Blitz-February-13-2024"]
[Site "Chess.com"]
[Date "2024.02.13"]
[Round "4"]
[White "Mikasinski"]
[Black "ChessSG1"]
[Result "1-0"]
[WhiteElo "2655"]
[BlackElo "2423"]
[TimeControl "180+1"]
[EndTime "8:42:18 PST"]
[Termination "Mikasinski won by checkmate"]

1. e4 {[%clk 0:03:00.9]} 1... c5 {[%clk 0:02:59.4]} 2. Nf3 {[%clk 0:03:00.9]}
2... g6 {[%clk 0:02:59.9]} 3. d4 {[%clk 0:03:00.2]} 3... cxd4 {[%clk 0:03:00.8]}
4. Nxd4 {[%clk 0:02:59.6]} 4... Nc6 {[%clk 0:03:00.3]} 5. Nc3 {[%clk 0:02:59.8]}
5... Bg7 {[%clk 0:03:00.5]} 6. Be3 {[%clk 0:03:00.4]} 6... Nf6 {[%clk 0:03:01]}
7. Bc4 {[%clk 0:02:59.5]} 7... O-O {[%clk 0:03:01.1]} 8. Bb3 {[%clk 0:02:58.9]}
8... a5 {[%clk 0:03:01.6]} 9. O-O {[%clk 0:02:59]} 9... Nxd4 {[%clk 0:03:00.7]}
10. Bxd4 {[%clk 0:02:58.7]} 10... d6 {[%clk 0:03:01.4]} 11. f4 {[%clk
0:02:58.4]} 11... Ng4 {[%clk 0:02:27.5]} 12. Bxg7 {[%clk 0:02:46.8]} 12... Kxg7
{[%clk 0:02:26.2]} 13. Kh1 {[%clk 0:02:39.6]} 13... Qb6 {[%clk 0:02:16.7]} 14.
Qe2 {[%clk 0:02:35.1]} 14... Bd7 {[%clk 0:01:36.3]} 15. Nd5 {[%clk 0:02:31.3]}
15... Qd8 {[%clk 0:01:36.3]} 16. h3 {[%clk 0:02:31.1]} 16... a4 {[%clk
0:01:13.1]} 17. hxg4 {[%clk 0:02:24.9]} 17... axb3 {[%clk 0:01:12.1]} 18. axb3
{[%clk 0:02:25.3]} 18... Rxa1 {[%clk 0:01:09.4]} 19. Rxa1 {[%clk 0:02:23.5]}
19... h5 {[%clk 0:01:07.6]} 20. g5 {[%clk 0:02:03.2]} 20... f6 {[%clk
0:01:07.6]} 21. gxf6+ {[%clk 0:02:01.1]} 21... exf6 {[%clk 0:01:07.9]} 22. Qe3
{[%clk 0:01:58.8]} 22... Re8 {[%clk 0:01:03.5]} 23. Qd4 {[%clk 0:01:57.2]} 23...
Bc6 {[%clk 0:01:00.2]} 24. c4 {[%clk 0:01:54.8]} 24... Bxd5 {[%clk 0:00:55.3]}
25. cxd5 {[%clk 0:01:50.7]} 25... Qd7 {[%clk 0:00:25.7]} 26. Ra7 {[%clk
0:01:46.5]} 26... Qb5 {[%clk 0:00:26.2]} 27. Qc4 {[%clk 0:01:23.5]} 27... Qb6
{[%clk 0:00:25.7]} 28. Qc6 {[%clk 0:00:52.5]} 28... Qxa7 {[%clk 0:00:07.4]} 29.
Qxe8 {[%clk 0:00:53.1]} 29... Qd4 {[%clk 0:00:06.4]} 30. Qe7+ {[%clk 0:00:48]}
30... Kh6 {[%clk 0:00:06.7]} 31. Qxd6 {[%clk 0:00:44.3]} 31... Qxe4 {[%clk
0:00:04.7]} 32. Qxf6 {[%clk 0:00:42.5]} 32... Qb1+ {[%clk 0:00:02.2]} 33. Kh2
{[%clk 0:00:42.7]} 33... Qe4 {[%clk 0:00:02]} 34. Qh8# {[%clk 0:00:42.5]} 1-0

[Event "Early-Titled-Tuesday-Blitz-February-13-2024"]
[Site "Chess.com"]
[Date "2024.02.13"]
[Round "4"]
[White "AndresDelgado77"]
[Black "Logman74"]
[Result "0-1"]
[WhiteElo "2359"]
[BlackElo "2542"]
[TimeControl "180+1"]
[EndTime "8:42:18 PST"]
[Termination "Logman74 won by checkmate"]

1. e4 {[%clk 0:03:00.8]} 1... c5 {[%clk 0:02:59.5]} 2. Nf3 {[%clk 0:02:59.6]}
2... d6 {[%clk 0:02:59.3]} 3. d4 {[%clk 0:02:58.8]} 3... cxd4 {[%clk 0:02:59.4]}
4. Qxd4 {[%clk 0:02:59.2]} 4... a6 {[%clk 0:02:54.1]} 5. Bg5 {[%clk 0:02:58.2]}
5... Nf6 {[%clk 0:02:49.2]} 6. Nc3 {[%clk 0:02:51.2]} 6... Nc6 {[%clk
0:02:46.2]} 7. Qd2 {[%clk 0:02:50.9]} 7... e6 {[%clk 0:02:42.4]} 8. O-O-O {[%clk
0:02:47.2]} 8... Be7 {[%clk 0:02:41.4]} 9. Bf4 {[%clk 0:02:47.1]} 9... Ng4
{[%clk 0:02:27]} 10. Bg3 {[%clk 0:02:21]} 10... Nge5 {[%clk 0:02:23.6]} 11. Nd4
{[%clk 0:02:05.4]} 11... Bd7 {[%clk 0:02:19.7]} 12. f4 {[%clk 0:01:58.5]} 12...
Nxd4 {[%clk 0:02:18.2]} 13. Qxd4 {[%clk 0:01:56.8]} 13... Nc6 {[%clk 0:02:14.2]}
14. Qxg7 {[%clk 0:01:47.6]} 14... Bf6 {[%clk 0:02:14.1]} 15. Qh6 {[%clk
0:01:47.7]} 15... Bxc3 {[%clk 0:02:12.6]} 16. bxc3 {[%clk 0:01:47.1]} 16... Qa5
{[%clk 0:02:13.2]} 17. Qf6 {[%clk 0:01:36.7]} 17... Rg8 {[%clk 0:02:07.8]} 18.
Bc4 {[%clk 0:01:21.9]} 18... Rc8 {[%clk 0:01:57.8]} 19. Rxd6 {[%clk 0:00:41]}
19... Qa3+ {[%clk 0:01:55.8]} 20. Kb1 {[%clk 0:00:37.4]} 20... Qxd6 {[%clk
0:01:53.9]} 21. f5 {[%clk 0:00:27.6]} 21... Qc5 {[%clk 0:01:41.7]} 22. fxe6
{[%clk 0:00:18.8]} 22... fxe6 {[%clk 0:01:21.2]} 23. Bxe6 {[%clk 0:00:17.9]}
23... Qe7 {[%clk 0:01:15.2]} 24. Qxe7+ {[%clk 0:00:11.6]} 24... Kxe7 {[%clk
0:01:15.2]} 25. Bxg8 {[%clk 0:00:10.6]} 25... Rxg8 {[%clk 0:01:15.6]} 26. Rd1
{[%clk 0:00:09.1]} 26... Be6 {[%clk 0:01:12.6]} 27. Bd6+ {[%clk 0:00:07.1]}
27... Kf7 {[%clk 0:01:04.1]} 28. Rf1+ {[%clk 0:00:06.1]} 28... Ke8 {[%clk
0:01:01.9]} 29. g3 {[%clk 0:00:05]} 29... Kd7 {[%clk 0:01:02.1]} 30. e5 {[%clk
0:00:04.7]} 30... Na5 {[%clk 0:00:54.1]} 31. Rf6 {[%clk 0:00:03.9]} 31... Nc4
{[%clk 0:00:54.5]} 32. Bb4 {[%clk 0:00:01.7]} 32... Rg5 {[%clk 0:00:53.4]} 33.
Rh6 {[%clk 0:00:01.3]} 33... Rxe5 {[%clk 0:00:53.3]} 34. Rxh7+ {[%clk
0:00:01.5]} 34... Kc6 {[%clk 0:00:53.5]} 35. Rh6 {[%clk 0:00:01.1]} 35... Re1#
{[%clk 0:00:51.6]} 0-1

[Event "Early-Titled-Tuesday-Blitz-February-13-2024"]
[Site "Chess.com"]
[Date "2024.02.13"]
[Round "4"]
[White "kleopl"]
[Black "Chernov_Alexander_A"]
[Result "1-0"]
[WhiteElo "2529"]
[BlackElo "2308"]
[TimeControl "180+1"]
[EndTime "8:42:18 PST"]
[Termination "kleopl won on time"]

1. e4 {[%clk 0:03:00.9]} 1... d6 {[%clk 0:02:59.3]} 2. d4 {[%clk 0:03:00.1]}
2... Nf6 {[%clk 0:02:58.7]} 3. Nc3 {[%clk 0:02:59.9]} 3... Nbd7 {[%clk
0:02:58.4]} 4. Be3 {[%clk 0:02:57.5]} 4... e5 {[%clk 0:02:58]} 5. f3 {[%clk
0:02:53.6]} 5... c6 {[%clk 0:02:57.7]} 6. Nge2 {[%clk 0:02:52.9]} 6... b5 {[%clk
0:02:54.2]} 7. Qd2 {[%clk 0:02:50.2]} 7... a6 {[%clk 0:02:53.4]} 8. O-O-O {[%clk
0:02:35]} 8... Qc7 {[%clk 0:02:51]} 9. Kb1 {[%clk 0:02:32.5]} 9... Bb7 {[%clk
0:02:49.6]} 10. g4 {[%clk 0:02:27.5]} 10... O-O-O {[%clk 0:02:47.9]} 11. h4
{[%clk 0:02:25.7]} 11... Be7 {[%clk 0:02:42.9]} 12. Bh3 {[%clk 0:02:22.1]} 12...
Kb8 {[%clk 0:02:39.6]} 13. Ng3 {[%clk 0:02:19.1]} 13... g6 {[%clk 0:02:38.9]}
14. g5 {[%clk 0:02:16.5]} 14... Nh5 {[%clk 0:02:08.1]} 15. Nxh5 {[%clk
0:02:15.2]} 15... gxh5 {[%clk 0:02:08.1]} 16. Bxd7 {[%clk 0:02:14.1]} 16... Rxd7
{[%clk 0:02:04.8]} 17. dxe5 {[%clk 0:02:13.8]} 17... Rhd8 {[%clk 0:02:04.5]} 18.
exd6 {[%clk 0:02:11.4]} 18... Bxd6 {[%clk 0:02:01.1]} 19. Qc1 {[%clk 0:02:01.2]}
19... Be5 {[%clk 0:01:41.9]} 20. Ne2 {[%clk 0:01:56.9]} 20... c5 {[%clk
0:01:34.5]} 21. Rxd7 {[%clk 0:01:47.6]} 21... Rxd7 {[%clk 0:01:33.6]} 22. Rd1
{[%clk 0:01:42.6]} 22... Rxd1 {[%clk 0:00:46.1]} 23. Qxd1 {[%clk 0:01:41.2]}
23... Kc8 {[%clk 0:00:27.2]} 24. Qd2 {[%clk 0:01:28.7]} 24... Qe7 {[%clk
0:00:20.3]} 25. Bf4 {[%clk 0:01:22.5]} 25... Qe6 {[%clk 0:00:17]} 26. Bxe5
{[%clk 0:01:14.7]} 26... Qxe5 {[%clk 0:00:16.9]} 27. Qf4 {[%clk 0:01:15.2]}
27... Qe6 {[%clk 0:00:13.5]} 28. Ng3 {[%clk 0:01:10.9]} 28... Kd7 {[%clk
0:00:08.8]} 29. Nxh5 {[%clk 0:01:02.4]} 29... Qh3 {[%clk 0:00:06.8]} 30. Qg4+
{[%clk 0:00:54.7]} 30... Qxg4 {[%clk 0:00:04.9]} 31. Nf6+ {[%clk 0:00:54.5]}
31... Ke6 {[%clk 0:00:04.4]} 32. Nxg4 {[%clk 0:00:55.4]} 32... f5 {[%clk
0:00:02.4]} 33. gxf6 {[%clk 0:00:48.5]} 1-0

[Event "Early-Titled-Tuesday-Blitz-February-13-2024"]
[Site "Chess.com"]
[Date "2024.02.13"]
[Round "4"]
[White "Dinamo3"]
[Black "hsd2016"]
[Result "1-0"]
[WhiteElo "2528"]
[BlackElo "2323"]
[TimeControl "180+1"]
[EndTime "8:42:21 PST"]
[Termination "Dinamo3 won by resignation"]

1. c4 {[%clk 0:03:00.9]} 1... c6 {[%clk 0:02:53]} 2. Nc3 {[%clk 0:03:00.4]} 2...
d5 {[%clk 0:02:49.5]} 3. cxd5 {[%clk 0:03:00.7]} 3... cxd5 {[%clk 0:02:49.4]} 4.
d4 {[%clk 0:03:01.4]} 4... Nf6 {[%clk 0:02:49.2]} 5. Bf4 {[%clk 0:03:02]} 5...
Nc6 {[%clk 0:02:49.2]} 6. e3 {[%clk 0:03:02.5]} 6... e6 {[%clk 0:02:49.6]} 7.
Bd3 {[%clk 0:02:59.8]} 7... Be7 {[%clk 0:02:42.6]} 8. Nf3 {[%clk 0:02:59.6]}
8... O-O {[%clk 0:02:42.2]} 9. O-O {[%clk 0:02:59.9]} 9... Bd7 {[%clk
0:02:40.7]} 10. a3 {[%clk 0:03:00.4]} 10... Rc8 {[%clk 0:02:41.2]} 11. Rc1
{[%clk 0:03:00.2]} 11... a6 {[%clk 0:02:30.2]} 12. Na4 {[%clk 0:02:50.5]} 12...
Ne4 {[%clk 0:02:27.8]} 13. Nc5 {[%clk 0:02:33.8]} 13... Nxc5 {[%clk 0:02:21.3]}
14. dxc5 {[%clk 0:02:34.7]} 14... Bf6 {[%clk 0:02:19.4]} 15. Bd6 {[%clk
0:02:13.4]} 15... Re8 {[%clk 0:02:15.5]} 16. b4 {[%clk 0:02:12.3]} 16... e5
{[%clk 0:02:08]} 17. e4 {[%clk 0:02:12.2]} 17... Bg4 {[%clk 0:01:59.6]} 18. h3
{[%clk 0:02:12.2]} 18... Bxf3 {[%clk 0:01:59]} 19. Qxf3 {[%clk 0:02:12]} 19...
Nd4 {[%clk 0:01:59.9]} 20. Qd1 {[%clk 0:02:00]} 20... dxe4 {[%clk 0:01:57.7]}
21. Bxe4 {[%clk 0:02:00.3]} 21... Bg5 {[%clk 0:01:57.4]} 22. Rc3 {[%clk
0:01:52]} 22... Nc6 {[%clk 0:01:15.7]} 23. Rd3 {[%clk 0:01:49]} 23... Qf6 {[%clk
0:01:13.9]} 24. g3 {[%clk 0:01:37.8]} 24... g6 {[%clk 0:00:36.7]} 25. h4 {[%clk
0:01:35.4]} 25... Bh6 {[%clk 0:00:36.6]} 26. Rf3 {[%clk 0:01:21.1]} 26... Qg7
{[%clk 0:00:28.9]} 27. Bd5 {[%clk 0:01:21.5]} 27... Rf8 {[%clk 0:00:27.4]} 28.
Bxf8 {[%clk 0:01:21]} 28... Rxf8 {[%clk 0:00:28.3]} 29. Bxc6 {[%clk 0:01:20.2]}
29... bxc6 {[%clk 0:00:28.4]} 30. Qd6 {[%clk 0:01:20.8]} 30... e4 {[%clk
0:00:27.7]} 31. Rb3 {[%clk 0:01:12.8]} 31... f5 {[%clk 0:00:26.1]} 32. Qxc6
{[%clk 0:01:11.2]} 32... Qe5 {[%clk 0:00:18.6]} 33. Qd6 {[%clk 0:01:08.8]} 33...
Qg7 {[%clk 0:00:14.6]} 34. c6 {[%clk 0:01:08.2]} 34... Qf7 {[%clk 0:00:15.1]}
35. Rc3 {[%clk 0:01:06.2]} 35... f4 {[%clk 0:00:15.2]} 36. c7 {[%clk 0:01:04]}
36... fxg3 {[%clk 0:00:15.5]} 37. c8=Q {[%clk 0:01:00.6]} 37... gxf2+ {[%clk
0:00:15.8]} 38. Kh1 {[%clk 0:00:59.1]} 38... e3 {[%clk 0:00:08.9]} 39. Qce6
{[%clk 0:00:51]} 1-0

[Event "Early-Titled-Tuesday-Blitz-February-13-2024"]
[Site "Chess.com"]
[Date "2024.02.13"]
[Round "4"]
[White "dianamirza"]
[Black "giomar27"]
[Result "0-1"]
[WhiteElo "1956"]
[BlackElo "2462"]
[TimeControl "180+1"]
[EndTime "8:42:21 PST"]
[Termination "giomar27 won by checkmate"]

1. d4 {[%clk 0:02:55.9]} 1... f6 {[%clk 0:03:00.5]} 2. e4 {[%clk 0:02:53.8]}
2... g6 {[%clk 0:03:01]} 3. f4 {[%clk 0:02:53.2]} 3... Nh6 {[%clk 0:03:01.2]} 4.
Nf3 {[%clk 0:02:53.6]} 4... Nf7 {[%clk 0:03:01.8]} 5. Nc3 {[%clk 0:02:51.4]}
5... Bg7 {[%clk 0:03:02.3]} 6. Be3 {[%clk 0:02:51.9]} 6... O-O {[%clk
0:03:02.6]} 7. Qd2 {[%clk 0:02:52.5]} 7... d6 {[%clk 0:03:03]} 8. Bc4 {[%clk
0:02:51.1]} 8... e6 {[%clk 0:03:00.5]} 9. O-O {[%clk 0:02:47.1]} 9... a6 {[%clk
0:03:00.6]} 10. a4 {[%clk 0:02:45.6]} 10... Qe7 {[%clk 0:02:59.2]} 11. e5 {[%clk
0:02:43.6]} 11... d5 {[%clk 0:02:54.9]} 12. Bb3 {[%clk 0:02:34.2]} 12... f5
{[%clk 0:02:47.4]} 13. Ng5 {[%clk 0:02:29.2]} 13... Nxg5 {[%clk 0:02:46.2]} 14.
fxg5 {[%clk 0:02:30.1]} 14... Kh8 {[%clk 0:02:41.8]} 15. a5 {[%clk 0:02:21.7]}
15... Nd7 {[%clk 0:02:35.5]} 16. Na4 {[%clk 0:02:19.1]} 16... c5 {[%clk
0:02:17.5]} 17. Nxc5 {[%clk 0:01:58.6]} 17... Nxc5 {[%clk 0:02:17.4]} 18. dxc5
{[%clk 0:01:59.4]} 18... Bxe5 {[%clk 0:02:15.8]} 19. Bd4 {[%clk 0:01:59.6]}
19... Bxd4+ {[%clk 0:02:11.7]} 20. Qxd4+ {[%clk 0:02:00.5]} 20... Qg7 {[%clk
0:02:12]} 21. Qxg7+ {[%clk 0:01:58]} 21... Kxg7 {[%clk 0:02:12.9]} 22. c4 {[%clk
0:01:54.8]} 22... d4 {[%clk 0:01:30.7]} 23. Ba4 {[%clk 0:01:39.7]} 23... e5
{[%clk 0:01:18]} 24. c6 {[%clk 0:01:38.6]} 24... e4 {[%clk 0:01:07.9]} 25. Kf2
{[%clk 0:01:25.8]} 25... bxc6 {[%clk 0:01:02.3]} 26. Bxc6 {[%clk 0:01:25.7]}
26... Rb8 {[%clk 0:01:03]} 27. Rab1 {[%clk 0:01:20.1]} 27... Be6 {[%clk
0:01:01.3]} 28. Rfc1 {[%clk 0:01:13.8]} 28... Rfc8 {[%clk 0:00:52.1]} 29. Ba4
{[%clk 0:00:29.6]} 29... Bxc4 {[%clk 0:00:43.6]} 30. b3 {[%clk 0:00:25.2]} 30...
Bd3 {[%clk 0:00:42.4]} 31. Rxc8 {[%clk 0:00:26.1]} 31... Rxc8 {[%clk 0:00:42.2]}
32. Rd1 {[%clk 0:00:18.5]} 32... f4 {[%clk 0:00:39.8]} 33. g3 {[%clk 0:00:18.1]}
33... f3 {[%clk 0:00:39.6]} 34. b4 {[%clk 0:00:12.3]} 34... Rc4 {[%clk
0:00:36.9]} 35. b5 {[%clk 0:00:11]} 35... Rxa4 {[%clk 0:00:36.7]} 36. bxa6
{[%clk 0:00:11.2]} 36... Ra2+ {[%clk 0:00:37]} 37. Ke1 {[%clk 0:00:10.1]} 37...
f2# {[%clk 0:00:36.4]} 0-1

[Event "Early-Titled-Tuesday-Blitz-February-13-2024"]
[Site "Chess.com"]
[Date "2024.02.13"]
[Round "4"]
[White "crazy_but_lazy"]
[Black "mitrabhaa"]
[Result "0-1"]
[WhiteElo "2609"]
[BlackElo "2914"]
[TimeControl "180+1"]
[EndTime "8:42:22 PST"]
[Termination "mitrabhaa won by resignation"]

1. d4 {[%clk 0:02:54.5]} 1... Nf6 {[%clk 0:02:57.5]} 2. c4 {[%clk 0:02:54.4]}
2... c5 {[%clk 0:02:58.4]} 3. d5 {[%clk 0:02:53.5]} 3... e6 {[%clk 0:02:59.1]}
4. Nc3 {[%clk 0:02:52.9]} 4... d6 {[%clk 0:02:59.4]} 5. Nf3 {[%clk 0:02:52.7]}
5... a6 {[%clk 0:03:00]} 6. a4 {[%clk 0:02:48.4]} 6... g6 {[%clk 0:03:00.2]} 7.
e4 {[%clk 0:02:35.9]} 7... exd5 {[%clk 0:03:00.1]} 8. exd5 {[%clk 0:02:36.4]}
8... Bg4 {[%clk 0:03:00]} 9. Be2 {[%clk 0:02:34.1]} 9... Bxf3 {[%clk 0:02:59.1]}
10. Bxf3 {[%clk 0:02:34.2]} 10... Bg7 {[%clk 0:02:59.8]} 11. O-O {[%clk
0:02:34.5]} 11... O-O {[%clk 0:03:00.7]} 12. Re1 {[%clk 0:02:33.9]} 12... Nbd7
{[%clk 0:03:00.8]} 13. Bf4 {[%clk 0:02:32.6]} 13... Qc7 {[%clk 0:03:01.1]} 14.
Qd2 {[%clk 0:02:32.5]} 14... Rfe8 {[%clk 0:03:01.5]} 15. Be2 {[%clk 0:02:19.9]}
15... Ne5 {[%clk 0:03:00.8]} 16. Bf1 {[%clk 0:02:19.7]} 16... Nfd7 {[%clk
0:02:57.5]} 17. h3 {[%clk 0:02:17.8]} 17... Qb6 {[%clk 0:02:56.9]} 18. a5 {[%clk
0:02:04.6]} 18... Qc7 {[%clk 0:02:56]} 19. Ra3 {[%clk 0:01:59]} 19... Re7 {[%clk
0:02:51.9]} 20. Bg5 {[%clk 0:01:56.3]} 20... f6 {[%clk 0:02:52.1]} 21. Bf4
{[%clk 0:01:56.2]} 21... Rae8 {[%clk 0:02:52.3]} 22. Rd1 {[%clk 0:01:52.3]}
22... f5 {[%clk 0:02:50.1]} 23. Na4 {[%clk 0:01:25.3]} 23... Nf7 {[%clk
0:02:40.3]} 24. b4 {[%clk 0:01:15.3]} 24... h6 {[%clk 0:02:31.7]} 25. Be3 {[%clk
0:00:48.3]} 25... cxb4 {[%clk 0:01:57.3]} 26. Qxb4 {[%clk 0:00:49.2]} 26... Rc8
{[%clk 0:01:52.4]} 27. Qd2 {[%clk 0:00:30.6]} 27... g5 {[%clk 0:01:49.7]} 28. c5
{[%clk 0:00:26.3]} 28... f4 {[%clk 0:01:48.2]} 29. Bd4 {[%clk 0:00:25.6]} 29...
Bxd4 {[%clk 0:01:47.9]} 30. Qxd4 {[%clk 0:00:26.5]} 30... Nxc5 {[%clk
0:01:47.6]} 31. Qf6 {[%clk 0:00:20.6]} 31... Re5 {[%clk 0:01:36]} 32. Nb6 {[%clk
0:00:18.3]} 32... Rce8 {[%clk 0:01:34.8]} 33. h4 {[%clk 0:00:18.9]} 33... Qe7
{[%clk 0:01:30.5]} 34. Qg6+ {[%clk 0:00:19]} 34... Kf8 {[%clk 0:01:31]} 35. Rh3
{[%clk 0:00:17]} 35... Re1 {[%clk 0:01:27.4]} 36. Rxe1 {[%clk 0:00:16.6]} 36...
Qxe1 {[%clk 0:01:27.1]} 37. hxg5 {[%clk 0:00:17.4]} 37... Ne4 {[%clk 0:01:25.2]}
38. Nd7+ {[%clk 0:00:04.8]} 38... Ke7 {[%clk 0:01:25]} 39. Rf3 {[%clk
0:00:04.2]} 39... Nd2 {[%clk 0:01:13.8]} 40. Qf6+ {[%clk 0:00:04.6]} 40... Kxd7
{[%clk 0:01:13.7]} 41. Qxf7+ {[%clk 0:00:05.3]} 41... Re7 {[%clk 0:01:13.8]} 42.
Qf5+ {[%clk 0:00:04.8]} 42... Kd8 {[%clk 0:01:14.3]} 43. Qxf4 {[%clk 0:00:05.2]}
43... Qxf1+ {[%clk 0:01:13.8]} 44. Kh2 {[%clk 0:00:05.7]} 44... Nxf3+ {[%clk
0:01:13.9]} 45. Qxf3 {[%clk 0:00:06.4]} 45... hxg5 {[%clk 0:01:13.7]} 46. Qf8+
{[%clk 0:00:06.9]} 46... Kd7 {[%clk 0:01:14]} 47. Qf5+ {[%clk 0:00:07.6]} 47...
Kc7 {[%clk 0:01:14.2]} 48. Qc2+ {[%clk 0:00:07.9]} 48... Kb8 {[%clk 0:01:14.5]}
0-1

[Event "Early-Titled-Tuesday-Blitz-February-13-2024"]
[Site "Chess.com"]
[Date "2024.02.13"]
[Round "4"]
[White "tylityli"]
[Black "kakarot_001"]
[Result "0-1"]
[WhiteElo "2290"]
[BlackElo "2650"]
[TimeControl "180+1"]
[EndTime "8:42:22 PST"]
[Termination "kakarot_001 won by resignation"]

1. d4 {[%clk 0:02:56.5]} 1... d6 {[%clk 0:02:50.1]} 2. c4 {[%clk 0:02:56.5]}
2... Nf6 {[%clk 0:02:50.3]} 3. Nc3 {[%clk 0:02:56.2]} 3... e5 {[%clk 0:02:49.3]}
4. dxe5 {[%clk 0:02:55.4]} 4... dxe5 {[%clk 0:02:50.2]} 5. Qxd8+ {[%clk
0:02:55.2]} 5... Kxd8 {[%clk 0:02:51.1]} 6. Bg5 {[%clk 0:02:55.4]} 6... c6
{[%clk 0:02:50.4]} 7. O-O-O+ {[%clk 0:02:56.3]} 7... Kc7 {[%clk 0:02:46.7]} 8.
h3 {[%clk 0:02:47.4]} 8... Be6 {[%clk 0:02:44.8]} 9. e3 {[%clk 0:02:47.2]} 9...
Nbd7 {[%clk 0:02:43.3]} 10. Nf3 {[%clk 0:02:46.1]} 10... Bb4 {[%clk 0:02:39.5]}
11. Kc2 {[%clk 0:02:45]} 11... Bxc3 {[%clk 0:02:37.2]} 12. bxc3 {[%clk
0:02:40.2]} 12... Ne4 {[%clk 0:02:36.5]} 13. Bh4 {[%clk 0:02:35.3]} 13... f6
{[%clk 0:02:36.6]} 14. Bd3 {[%clk 0:02:34.6]} 14... Ndc5 {[%clk 0:02:36.3]} 15.
Nd2 {[%clk 0:02:25.4]} 15... Nxd2 {[%clk 0:02:19.5]} 16. Rxd2 {[%clk 0:02:24]}
16... Nxd3 {[%clk 0:02:18.5]} 17. Kxd3 {[%clk 0:02:23.4]} 17... Rad8+ {[%clk
0:02:18.8]} 18. Kc2 {[%clk 0:02:20.2]} 18... Bf5+ {[%clk 0:02:13.2]} 19. Kc1
{[%clk 0:02:19.2]} 19... Rxd2 {[%clk 0:02:13.7]} 20. Kxd2 {[%clk 0:02:19.1]}
20... Rd8+ {[%clk 0:02:14.6]} 21. Ke2 {[%clk 0:02:13.3]} 21... Bd3+ {[%clk
0:02:13.1]} 22. Kd2 {[%clk 0:01:45.9]} 22... Bxc4+ {[%clk 0:02:14]} 23. Kc2
{[%clk 0:01:45.9]} 23... Bxa2 {[%clk 0:02:11]} 24. Ra1 {[%clk 0:01:44.1]} 24...
Bc4 {[%clk 0:02:10.5]} 25. Rxa7 {[%clk 0:01:42.9]} 25... Ba6 {[%clk 0:02:10]}
26. f4 {[%clk 0:01:35.2]} 26... Kb6 {[%clk 0:01:47]} 27. Rxa6+ {[%clk
0:01:31.4]} 27... bxa6 {[%clk 0:01:47.9]} 28. fxe5 {[%clk 0:01:31.4]} 28... a5
{[%clk 0:01:38]} 29. exf6 {[%clk 0:01:30.2]} 29... gxf6 {[%clk 0:01:38.9]} 30.
Bxf6 {[%clk 0:01:30]} 30... Rg8 {[%clk 0:01:39.5]} 31. g4 {[%clk 0:01:29]} 31...
a4 {[%clk 0:01:38.4]} 32. g5 {[%clk 0:01:07.3]} 32... Kb5 {[%clk 0:01:20.5]} 33.
h4 {[%clk 0:01:01.6]} 33... Kc4 {[%clk 0:01:11.2]} 34. h5 {[%clk 0:00:58.2]}
34... a3 {[%clk 0:01:07]} 35. Be7 {[%clk 0:00:54.8]} 35... Ra8 {[%clk
0:01:00.8]} 36. Kb1 {[%clk 0:00:43.5]} 36... a2+ {[%clk 0:00:59.7]} 37. Ka1
{[%clk 0:00:39.6]} 37... Kb3 {[%clk 0:00:59.1]} 38. Bf6 {[%clk 0:00:32]} 38...
Ra5 {[%clk 0:00:52]} 39. h6 {[%clk 0:00:25.4]} 39... Rf5 {[%clk 0:00:45.6]} 0-1

[Event "Early-Titled-Tuesday-Blitz-February-13-2024"]
[Site "Chess.com"]
[Date "2024.02.13"]
[Round "4"]
[White "maxip32"]
[Black "inagreV"]
[Result "1-0"]
[WhiteElo "2662"]
[BlackElo "2348"]
[TimeControl "180+1"]
[EndTime "8:42:24 PST"]
[Termination "maxip32 won by resignation"]

1. e4 {[%clk 0:03:00.9]} 1... c5 {[%clk 0:02:58.8]} 2. Nf3 {[%clk 0:02:59.8]}
2... Nc6 {[%clk 0:02:59.3]} 3. Bb5 {[%clk 0:02:58.9]} 3... g6 {[%clk 0:02:58.1]}
4. Bxc6 {[%clk 0:02:55.2]} 4... dxc6 {[%clk 0:02:59]} 5. d3 {[%clk 0:02:54]}
5... Bg7 {[%clk 0:02:58.8]} 6. h3 {[%clk 0:02:54.9]} 6... Nf6 {[%clk 0:02:58.1]}
7. Nc3 {[%clk 0:02:55.6]} 7... O-O {[%clk 0:02:57.9]} 8. Be3 {[%clk 0:02:55]}
8... b6 {[%clk 0:02:57.9]} 9. Qd2 {[%clk 0:02:55.9]} 9... e5 {[%clk 0:02:57.8]}
10. Bh6 {[%clk 0:02:55.5]} 10... Qd6 {[%clk 0:02:56.9]} 11. O-O {[%clk
0:02:51.5]} 11... Rd8 {[%clk 0:02:27.5]} 12. Rad1 {[%clk 0:02:50.8]} 12... Nh5
{[%clk 0:02:25.2]} 13. Bxg7 {[%clk 0:02:50.3]} 13... Kxg7 {[%clk 0:02:20.2]} 14.
Qe3 {[%clk 0:02:42]} 14... h6 {[%clk 0:02:02.1]} 15. b3 {[%clk 0:02:27.9]} 15...
a5 {[%clk 0:01:50.2]} 16. a4 {[%clk 0:02:27.3]} 16... Ra7 {[%clk 0:01:41.4]} 17.
Nb1 {[%clk 0:02:22.9]} 17... Nf4 {[%clk 0:01:37.4]} 18. Kh2 {[%clk 0:02:20.1]}
18... Qe6 {[%clk 0:01:31.1]} 19. Ng1 {[%clk 0:02:19.3]} 19... Rad7 {[%clk
0:01:25.8]} 20. Nd2 {[%clk 0:02:18]} 20... Re7 {[%clk 0:01:21.3]} 21. Nc4 {[%clk
0:02:16]} 21... b5 {[%clk 0:01:14.4]} 22. axb5 {[%clk 0:01:57.9]} 22... cxb5
{[%clk 0:01:14.2]} 23. Nxa5 {[%clk 0:01:56.5]} 23... Ra7 {[%clk 0:00:23.5]} 24.
b4 {[%clk 0:01:55.9]} 24... Rd4 {[%clk 0:00:18.7]} 25. c3 {[%clk 0:01:54.3]}
25... Rd8 {[%clk 0:00:17.8]} 26. Qxc5 {[%clk 0:01:51.9]} 26... Rad7 {[%clk
0:00:17.7]} 27. Qe3 {[%clk 0:01:46.3]} 27... Rxd3 {[%clk 0:00:17.1]} 28. Rxd3
{[%clk 0:01:38]} 28... Rxd3 {[%clk 0:00:18]} 29. Qc5 {[%clk 0:01:38.1]} 29...
Nxh3 {[%clk 0:00:08.8]} 30. f3 {[%clk 0:01:33.5]} 30... Nf4 {[%clk 0:00:06.7]}
31. Rf2 {[%clk 0:01:27.7]} 31... Qf6 {[%clk 0:00:05.6]} 32. g3 {[%clk
0:01:24.1]} 32... Nh3 {[%clk 0:00:02.6]} 33. Nxh3 {[%clk 0:01:12.9]} 33... Bxh3
{[%clk 0:00:03.1]} 34. Kxh3 {[%clk 0:01:12.8]} 34... Rxf3 {[%clk 0:00:03.8]} 35.
Kg2 {[%clk 0:01:09.3]} 35... Rxf2+ {[%clk 0:00:02.2]} 36. Qxf2 {[%clk
0:01:10.2]} 36... Qd6 {[%clk 0:00:02.3]} 37. Nb3 {[%clk 0:01:08.6]} 37... Qd3
{[%clk 0:00:02.5]} 38. Nc5 {[%clk 0:01:08.6]} 38... Qxc3 {[%clk 0:00:03]} 39.
Nd7 {[%clk 0:01:00.5]} 39... Qd4 {[%clk 0:00:02.3]} 40. Qxd4 {[%clk 0:00:57.3]}
40... exd4 {[%clk 0:00:02.5]} 1-0